[Event "Lliga Catalana DH 2023"]
[Site "Catalonia"]
[Date "2023.02.18"]
[Round "5.2"]
[White "Gonzalez Garcia, Jose"]
[Black "Fernandez Guillen, Ernesto Javier"]
[Result "1-0"]
[ECO "A84"]
[WhiteElo "2450"]
[BlackElo "2454"]
[Annotator "TA"]
[PlyCount "111"]
[EventDate "2023.01.24"]
[EventType "team-tourn"]
[EventCountry "ESP"]
[SourceTitle "playchess.com"]
[Source "ChessBase"]
[SourceQuality "1"]
[TimeControl "40/5400+30:1800+30"]

{[%evp 9,111,36,39,44,44,45,52,53,55,41,124,122,102,32,25,33,32,-55,53,0,0,0,82,0,12,16,115,112,112,92,118,122,122,122,122,122,116,114,177,181,163,191,168,107,216,211,251,184,211,300,299,263,645,627,691,661,1109,1038,1532,1105,1359,973,1579,1393,1281,8,8,8,33,32,32,8,4436,4324,3135,2813,2216,2071,2217,1835,1483,1373,1052,618,29974,325,29973,29974,29971,29975,29975,29976,29976,29977,29977,29977,29977,29978,29979,29979,29985,29985,29986,29987]} 1. d4 d5 2. c4 e6 3. Nc3 f5 4. Bf4 Bd6 5. Bxd6 Qxd6 6. e3 {A84: Dutch Defence: 2 c4 Miscellaneous.} c6 7. Qh5+ g6 8. Qg5 {White is slightly better.} Nd7 {[#]} 9. h4 $146 {[%cal Bh2h4,Bh4h5][%mdl 32]} ({Predecessor:} 9. Nf3 Qe7 10. Qxe7+ Nxe7 11. c5 O-O 12. Be2 Nf6 13. Ne5 b6 14. Na4 b5 15. Nc3 {1-0 Van de Peut,A (1394)-Voudouris,N (1354) SE-2012-0-00130}) 9... Ne7 (9... Ngf6 $14) 10. h5 $16 h6 11. Qf4 (11. c5 $6 hxg5 12. cxd6 Ng8 $11) (11. hxg6 $16 hxg5 12. Rxh8+ Ng8 13. Rxg8+ Ke7 14. Nh3) 11... Qxf4 $14 12. exf4 g5 13. O-O-O (13. cxd5 $14 exd5 14. fxg5) 13... dxc4 (13... g4 $1 $15) 14. Bxc4 ({White should play} 14. fxg5 $14 b5 15. Nf3) 14... Nb6 $11 15. Bb3 a5 (15... g4 $1 $11) 16. a3 (16. fxg5 $16 {Strongly threatening f4.} hxg5 17. Nf3) 16... a4 17. Ba2 Nbd5 (17... g4 $11) 18. fxg5 $16 hxg5 19. Bxd5 cxd5 {[#]} 20. Nf3 $1 g4 21. Ne5 Nc6 22. f3 {White is much more active.} Nxe5 23. dxe5 gxf3 (23... Bd7 $16) 24. gxf3 $18 Bd7 25. Ne2 Kf7 26. Kd2 (26. Nf4 $18) 26... Rag8 (26... Bc6 $16 {is a better defense.}) 27. Nf4 Rg3 28. Ke3 Bc6 {[%cal Od5d4]} 29. Kf2 Rgg8 30. Rdg1 {Threatens to win with Rg6.} Rxg1 (30... Bd7 31. Rxg8 Rxg8) 31. Rxg1 {[%mdl 4096] Endgame KRB-KRN} Rh6 32. Rg6 Rxg6 33. hxg6+ {KB-KN} Kg7 34. Nxe6+ Kxg6 35. Kg3 b6 36. Kf4 Bb7 37. Nf8+ $2 (37. Ke3 $18 {aiming for f4.} f4+ 38. Kxf4 (38. Nxf4+ Kf5 $18)) 37... Kf7 $11 38. Nd7 Ke6 39. Nxb6 Bc6 40. Ke3 {Hoping for f4.} Kxe5 {[%mdl 8192] A mistake that costs the game.} (40... d4+ $11 41. Kxd4 f4) 41. f4+ $18 Ke6 42. Kd3 Ke7 43. Kc3 Ke6 44. Kb4 Kd6 {[#]} 45. Nc8+ $1 Kd7 46. Na7 {Intending Nxc6 and mate.} Kd6 47. Nb5+ $2 (47. Nxc6 {mates} Kxc6 48. b3 (48. Kxa4 Kc5 $11) 48... d4 49. bxa4 (49. Kxa4 d3 50. Kb4 d2 51. Kc3 d1=Q 52. Kc4 Qc1+ 53. Kd4 Qxf4+ 54. Kd3 Kd5 55. Kc3 Qc1+ 56. Kd3 f4 57. Ke2 Ke4 58. b4 Qb2+ 59. Kd1 Kd3 60. Ke1 Qe2#) 49... Kd5 50. a5 Ke4 51. a6 Kxf4 52. a7) 47... Bxb5 $2 (47... Ke7 $18 48. Kc5 (48. Kxa4 $2 {too greedy.} d4 $19) 48... Bd7) 48. Kxb5 {K3P-K3P. White mates.} d4 49. Kc4 $1 ({Not} 49. Kxa4 Kd5 50. Kb3 Ke4 $11) 49... d3 50. Kxd3 {K3P-KPP} Kd5 51. b4 axb3 52. a4 {[%cal Ba3a4,Ba4a5,Ba5a6,Ba6a7][%mdl 32]} b2 53. Kc2 Ke4 54. a5 Kxf4 55. a6 Ke3 56. a7 {Weighted Error Value: White=0.43/Black=0.58} 1-0

[Event "Lliga Catalana DH 2023"]
[Site "Catalonia"]
[Date "2023.02.18"]
[Round "5.2"]
[White "Fernandez Diaz, Cristian"]
[Black "Garcia Ramos, Daniel"]
[Result "0-1"]
[ECO "A48"]
[WhiteElo "2252"]
[BlackElo "2426"]
[Annotator "TA"]
[PlyCount "84"]
[EventDate "2023.01.24"]
[EventType "team-tourn"]
[EventCountry "ESP"]
[SourceTitle "playchess.com"]
[Source "ChessBase"]
[SourceQuality "1"]
[TimeControl "40/5400+30:1800+30"]

{[%evp 16,84,27,16,37,45,45,13,27,20,36,11,10,4,7,-6,-6,-4,-8,-10,-5,-6,-10,-13,0,0,0,-7,0,0,0,-10,0,-8,-10,-27,-25,-28,-5,-44,-52,-180,-181,-595,-679,-650,-664,-652,-677,-691,-677,-694,-687,-692,-656,-706,-676,-766,-758,-730,-730,-711,-701,-1053,-943,-1201,-1217,-1744,-1182,-1166,-1107]} 1. d4 {[%emt 0:00:03]} Nf6 {[%emt 0:08:27]} 2. Nf3 {[%emt 0:00:09]} b6 {[%emt 0:01:05]} 3. Bf4 {[%emt 0:01:01]} Bb7 {[%emt 0:00:06]} 4. e3 {[%emt 0:00:07]} g6 {[%emt 0:00:08]} 5. c4 {[%emt 0:01:19]} Bg7 {[%emt 0:00:11]} 6. Nc3 {[%emt 0:00:18]} O-O {[%emt 0:00:38]} 7. h3 {[%emt 0:00:55]} d6 {[%emt 0:00:29]} 8. Be2 {[%emt 0:03:05]} e6 {[%emt 0:10:44]} 9. O-O {[%emt 0:01:52]} Qe7 {[%emt 0:00:03] A48: 1 d4 Nf6 2 Nf3 g6: Torre, London and Colle Systems.} 10. Qc2 {[%emt 0:02:20]} Nbd7 {[%emt 0:05:25]} 11. Bh2 {[%emt 0:08:17]} c5 {[%emt 0:05:55] The position is equal.} 12. Rfd1 {[%emt 0:06:05] Hoping for dxc5.} Rfd8 {[%emt 0:00:46]} 13. Rac1 {[%emt 0:03:00] [#]} (13. d5 $5 {[%cal Rd5e6]}) 13... d5 $146 {[%emt 0:14:51]} ({Predecessor:} 13... cxd4 14. Nxd4 e5 15. Ndb5 Nf8 16. Nd5 Nxd5 17. cxd5 a6 18. Nc3 Nd7 19. Bg3 Bh6 {0-1 Vogel,J (2119)-Hebert,J (2333) Wch Seniors 65 30th 2022 (3)}) 14. cxd5 {[%emt 0:08:09]} Nxd5 {[%emt 0:01:19]} 15. Nb5 {[%emt 0:13:21]} e5 {[%emt 0:05:09]} 16. dxe5 {[%emt 0:19:52]} (16. Nxe5 {is more complex.} Nxe5 17. dxe5 Bxe5 18. Bxe5 Qxe5 19. Bf3) 16... Nxe5 {[%emt 0:00:07]} 17. Nxe5 {[%emt 0:06:33]} Bxe5 {[%emt 0:00:06]} 18. Bxe5 {[%emt 0:00:24]} Qxe5 {[%emt 0:00:02]} 19. a3 {[%emt 0:01:02] Wards off Nb4} Qg5 {[%emt 0:23:41]} 20. Bf1 $1 {[%emt 0:00:43]} Qe7 {[%emt 0:00:39]} 21. Nc3 {[%emt 0:01:24]} Nf6 {[%emt 0:01:58]} 22. Qa4 {[%emt 0:00:43]} a6 {[%emt 0:01:00]} 23. Qf4 {[%emt 0:01:32]} Kg7 {[%emt 0:03:57]} 24. Be2 {[%emt 0:01:29]} b5 {[%emt 0:00:44]} 25. Bf3 {[%emt 0:02:02]} Bxf3 {[%emt 0:00:59]} 26. Qxf3 {[%emt 0:00:02]} Qe6 {[%emt 0:01:41]} 27. Ne2 {[%emt 0:09:19]} Qb3 {[%emt 0:00:43][%csl LRb2,LRd1]} 28. Rxd8 {[%emt 0:00:38] White does not recover from this.} (28. Nf4 $15) 28... Rxd8 $19 {[%emt 0:00:06]} 29. Rxc5 $2 {[%emt 0:00:20] [#]} (29. Nf4) 29... Qd1+ {[%emt 0:00:12] Black is clearly winning.} ({Not} 29... Qxb2 30. Nd4 $11) 30. Kh2 {[%emt 0:00:49]} Qd6+ {[%emt 0:00:06]} 31. Ng3 {[%emt 0:00:03]} Qxc5 {[%emt 0:00:50]} 32. Qxf6+ {[%emt 0:00:07]} Kxf6 {[%emt 0:00:04]} 33. Ne4+ {[%emt 0:00:05]} Ke7 {[%emt 0:00:48] [#] ( -> ...Qf5)} 34. Nxc5 {[%emt 0:00:08][%mdl 4096] Endgame KR-KN} Rd2 {[%emt 0:00:54][%csl LRb2,LRf2]} 35. b4 {[%emt 0:00:37]} Rxf2 {[%emt 0:03:00]} 36. Nxa6 {[%emt 0:00:36]} Kd6 {[%emt 0:01:26] Prevents Nc7.} 37. Nc5 {[%emt 0:00:40]} Ra2 {[%emt 0:00:08]} 38. Ne4+ {[%emt 0:00:43]} Kc6 {[%emt 0:00:22]} 39. Ng5 {[%emt 0:00:59]} Rxa3 {[%emt 0:00:07]} 40. e4 {[%emt 0:00:38]} Rb3 {[%emt 0:00:47]} 41. Nxf7 {[%emt 0:30:17]} Rxb4 {[%emt 0:30:05]} 42. Ne5+ {[%emt 0:00:13]} Kd6 {[%emt 0:00:13] Weighted Error Value: White=0.60/Black=0.04 (flawless)} 0-1

[Event "Lliga Catalana DH 2023"]
[Site "Catalonia"]
[Date "2023.02.18"]
[Round "5.3"]
[White "Moskalenko, Viktor"]
[Black "Ortin Blanco, Inigo"]
[Result "1/2-1/2"]
[ECO "E53"]
[WhiteElo "2448"]
[BlackElo "2248"]
[Annotator "TA"]
[PlyCount "142"]
[EventDate "2023.01.24"]
[EventType "team-tourn"]
[EventCountry "ESP"]
[SourceTitle "playchess.com"]
[Source "ChessBase"]
[SourceQuality "1"]
[TimeControl "40/5400+30:1800+30"]

{[%evp 19,142,15,10,9,12,10,11,10,18,0,0,0,0,0,0,0,0,0,21,0,0,0,0,0,22,0,0,0,52,56,86,19,19,19,19,19,19,19,46,20,54,54,66,35,50,42,54,54,62,62,227,224,204,98,98,0,177,78,80,79,77,0,62,47,47,0,57,58,58,59,59,65,61,59,75,66,89,89,89,53,46,5,44,0,0,0,0,0,0,0,68,68,68,68,68,68,68,68,68,68,68,68,68,68,68,68,68,68,68,68,68,68,68,68,68,68,68,35,35,0,0,0,0,0,0]} 1. d4 {[%emt 0:11:10]} d5 {[%emt 0:00:17]} 2. c4 {[%emt 0:00:52]} e6 {[%emt 0:00:18]} 3. Nc3 {[%emt 0:00:07]} Bb4 {[%emt 0:00:39]} 4. e3 {[%emt 0:00:24]} Nf6 {[%emt 0:00:19]} 5. Nf3 {[%emt 0:00:38]} O-O {[%emt 0:01:22]} 6. Bd2 {[%emt 0:00:06]} b6 {[%emt 0:02:17]} 7. cxd5 {[%emt 0:09:38]} exd5 {[%emt 0:02:54]} 8. Bd3 {[%emt 0:06:01]} c5 {[%emt 0:11:44]} 9. Ne5 {[%emt 0:10:35]} Bb7 {[%emt 0:11:52]} 10. O-O {[%emt 0:01:35]} Nc6 {[%emt 0:01:23]} 11. a3 {[%emt 0:01:30] E53: Nimzo-Indian: Rubinstein: Main Line (4...0-0 5 Nf3 d5 6 Bd3 c5 7 0-0).} Bxc3 {[%emt 0:06:46]} 12. Bxc3 {[%emt 0:10:00]} Nxe5 {[%emt 0:02:02]} 13. dxe5 {[%emt 0:00:02]} Ne4 {[%emt 0:00:29]} 14. Bxe4 {[%emt 0:02:32]} (14. Be1 {seems wilder.} Qg5 15. f4 Qh6 16. Qe2) 14... dxe4 {[%emt 0:00:08]} 15. Qg4 {[%emt 0:00:03] Black must now prevent e6.} Qe7 {[%emt 0:02:08] Wards off e6} 16. Rfd1 {[%emt 0:02:54] Hoping for Rd7.} Qe6 {[%emt 0:02:57] Repels Rd7} 17. Qh4 {[%emt 0:00:49]} Bd5 {[%emt 0:06:13]} 18. Rd2 {[%emt 0:00:57]} Rfe8 {[%emt 0:07:15] [#] Black is weak on the dark squares} 19. Qf4 $146 {[%emt 0:17:17]} ({Predecessor:} 19. Rad1 Bb3 20. Rf1 Qg6 21. Rd6 Be6 22. h3 h6 23. Kh2 Kh7 24. f3 exf3 25. gxf3 {½-½ Pheby,I (2283)-Potrata,J (2256) VW-Cup10 Gr41 email 2017}) 19... Rad8 {[%emt 0:17:15]} 20. Rad1 {[%emt 0:00:39]} Rd7 {[%emt 0:00:17]} 21. f3 {[%emt 0:00:45]} Red8 {[%emt 0:00:29]} 22. Qh4 {[%emt 0:05:33]} Qe8 {[%emt 0:04:02]} 23. fxe4 {[%emt 0:04:42]} Bc6 {[%emt 0:00:59]} (23... Be6 $11) 24. Rd6 $14 {[%emt 0:00:57]} Rxd6 {[%emt 0:00:22]} 25. Rxd6 {[%emt 0:00:17]} (25. exd6 $16 f6 26. e5 fxe5 27. Bxe5) 25... Rxd6 $11 {[%emt 0:00:14]} 26. exd6 $14 {[%emt 0:00:01][%mdl 4096] Endgame KQB-KQB} f6 {[%emt 0:03:11]} 27. Qg4 {[%emt 0:08:49]} Qd7 {[%emt 0:01:16]} (27... Kf7 {is interesting.} 28. e5 Qe6 29. Qg3 Qf5) 28. Qf4 {[%emt 0:00:45]} (28. Qxd7 {simplifies} Bxd7 29. e5 Kf7 30. exf6 gxf6 31. e4) 28... Qe6 {[%emt 0:00:48]} 29. e5 {[%emt 0:01:13]} f5 {[%emt 0:02:41]} 30. Qg3 {[%emt 0:02:15]} Kf7 {[%emt 0:05:27]} 31. Kf2 {[%emt 0:01:24]} (31. b4 {with more complications.} Qd5 32. h3 h6 33. e6+) 31... h6 {[%emt 0:04:49]} 32. h4 {[%emt 0:00:44][%cal Bh2h4,Bh4h5][%mdl 32]} Kf8 {[%emt 0:00:55]} 33. h5 {[%emt 0:00:33]} Bd7 {[%emt 0:01:12]} 34. Qf3 {[%emt 0:00:18]} Qf7 $2 {[%emt 0:01:52]} (34... Kg8 $1 $14) 35. Qa8+ $18 {[%emt 0:01:16]} Be8 {[%emt 0:00:07] [#]} 36. Qc8 {[%emt 0:00:17]} (36. e6 $1 $18 {[%cal Re6f7]} Qxe6 37. Qxa7) 36... Qd7 $16 {[%emt 0:00:14]} 37. Qa8 {[%emt 0:00:23] White is much more active.} ({Better is} 37. Qb8 $16) 37... Kf7 $2 {[%emt 0:00:12]} (37... Qf7 $1 $11) 38. Qf3 {[%emt 0:00:21]} (38. b3 $18 {and White stays clearly on top.}) 38... Kg8 {[%emt 0:00:30]} 39. Ke1 {[%emt 0:00:49]} Bf7 {[%emt 0:00:38]} 40. Kf2 {[%emt 0:00:23]} (40. e6 $16 Bxe6 41. Qa8+ Kf7 42. Be5 (42. Qh8 Qxd6 43. Qxg7+ Ke8 $16)) 40... Be6 {[%emt 0:00:18]} (40... Be8 $1 $11) 41. Qa8+ {[%emt 0:30:33]} Kh7 {[%emt 0:31:10]} 42. Qf8 {[%emt 0:00:33]} (42. e4 $14 {should be considered.}) 42... Qc8 {[%emt 0:00:17]} (42... Qa4 $11 43. b3 (43. Qe7 Qc2+ {[%mdl 64] Skewer} 44. Ke1 Bc4) 43... Qxb3) 43. Qe7 $14 {[%emt 0:00:32]} (43. Qxc8 {simplifies} Bxc8 44. Kg3 Kg8 45. e4) 43... Qd7 {[%emt 0:00:07]} 44. Kg3 {[%emt 0:00:34]} (44. Qxd7 {simplifies} Bxd7 45. e4 Kg8 46. exf5 Bxf5 47. Kg3) 44... Kg8 {[%emt 0:00:27]} 45. Qh4 {[%emt 0:00:14]} (45. Qxd7 {simplifies} Bxd7 46. Kf4 Kf7 47. e4) 45... Bd5 {[%emt 0:00:29]} 46. Kf2 {[%emt 0:00:16]} Kf7 {[%emt 0:00:44]} 47. Qg3 {[%emt 0:00:11][%cal Og3g7] aiming for Qxg7+!} Qe6 {[%emt 0:00:16] [#]} 48. d7 $1 {[%emt 0:01:28]} Qxd7 {[%emt 0:00:53] [#]} 49. e6+ $1 {[%emt 0:00:10]} Qxe6 {[%emt 0:00:43]} 50. Qxg7+ {[%emt 0:00:06]} Ke8 {[%emt 0:00:04]} 51. Qxa7 {[%emt 0:00:30]} Qe4 {[%emt 0:00:35]} 52. Qb8+ {[%emt 0:00:20]} Kd7 {[%emt 0:00:21]} 53. Qg3 {[%emt 0:01:03]} Qc2+ {[%emt 0:00:13]} 54. Ke1 {[%emt 0:00:43]} Qxg2 {[%emt 0:00:24]} (54... Kc6 $11) 55. Qxg2 {[%emt 0:00:09]} Bxg2 $11 {[%emt 0:00:05] KB-KB} 56. Kf2 $1 {[%emt 0:00:01] Repels Bf3} Be4 {[%emt 0:01:43]} 57. Kg3 {[%emt 0:00:03]} Ke6 {[%emt 0:00:54]} 58. Bg7 {[%emt 0:00:03]} Kf7 {[%emt 0:00:16]} 59. Bxh6 {[%emt 0:00:03]} b5 {[%emt 0:00:14]} 60. Kf4 {[%emt 0:00:15]} c4 {[%emt 0:00:17]} 61. Kg5 {[%emt 0:00:28]} Kg8 {[%emt 0:00:17]} 62. Kf6 {[%emt 0:00:28]} Kh7 {[%emt 0:00:12]} 63. Bf4 {[%emt 0:00:04]} Bc2 {[%emt 0:00:06]} 64. Kf7 {[%emt 0:00:18]} Be4 {[%emt 0:00:12]} 65. Ke6 {[%emt 0:00:36]} Bc2 {[%emt 0:00:14]} 66. Kd5 {[%emt 0:00:57]} Kg8 {[%emt 0:00:29]} 67. Kc5 {[%emt 0:00:24]} Ba4 $1 {[%emt 0:00:06]} 68. Be5 {[%emt 0:02:56]} Kh7 {[%emt 0:00:19]} 69. b3 {[%emt 0:00:27]} cxb3 {[%emt 0:00:57] The position is equal.} 70. Kd5 {[%emt 0:00:01]} b2 {[%emt 0:00:34]} 71. Bxb2 {[%emt 0:00:02]} Kh6 {[%emt 0:00:09] Weighted Error Value: White=0.19 (very precise) /Black=0.21 (precise)} 1/2-1/2

[Event "Lliga Catalana DH 2023"]
[Site "Catalonia"]
[Date "2023.02.18"]
[Round "5.3"]
[White "Sama Salinas, Hector"]
[Black "Iermito, Sebastian"]
[Result "0-1"]
[ECO "A04"]
[WhiteElo "2333"]
[BlackElo "2528"]
[Annotator "TA"]
[PlyCount "57"]
[EventDate "2023.01.24"]
[EventType "team-tourn"]
[EventCountry "ESP"]
[SourceTitle "playchess.com"]
[Source "ChessBase"]
[SourceQuality "1"]
[TimeControl "40/5400+30:1800+30"]

{[%evp 14,57,8,-17,-8,-21,6,-7,2,0,0,0,0,0,0,-9,0,-12,6,-230,-215,-318,-295,-302,-317,-340,-341,-416,-412,-396,-379,-502,-458,-489,-491,-745,-725,-710,-702,-733,-725,-772,-774,-1347,-1254,-1191]} 1. e4 c5 2. Nf3 Nc6 3. g3 g6 4. Bg2 Bg7 5. O-O d6 6. Nc3 e6 7. d3 Nge7 8. Bg5 O-O {A04: Unusual lines after 1 Nf3 and King's Indian Attack.} 9. Qd2 Rb8 10. a3 b5 {[%cal Bb7b5,Bb5b4,Bb4a3,Ba3a2][%mdl 32] [#] The position is equal.} 11. b4 $146 ({Predecessor:} 11. Bh6 Nd4 12. Bxg7 Kxg7 13. Ne2 e5 14. Nfxd4 cxd4 15. f4 f5 16. c3 fxe4 17. dxe4 {½-½ Klein,A-Kirste,A GER-ch U17 Girls 1995 (9)}) 11... a5 12. bxc5 dxc5 13. Rab1 b4 14. Na4 Qd6 15. Be3 Rb5 16. Nb2 $2 {This costs White the game.} (16. c3 $11) 16... bxa3 $19 17. Nc4 (17. Na4 {was the only chance.} Rxb1 18. Rxb1) 17... Rxb1 (17... Qb8 18. Nxa3 Rxb1 19. Rxb1 $16) 18. Rxb1 (18. Nxd6 a2 19. Bxc5 (19. Nxc8 $2 Rxc8 20. Bxc5 a1=Q $19) 19... a1=Q $19) 18... a2 19. Re1 {[#]} Qb8 (19... a1=Q 20. Rxa1 (20. Nxd6 Qc3 $16) 20... Qb8 21. c3 $16) 20. e5 Ba6 (20... Bxe5 21. Ncxe5 (21. Nxa5 $2 a1=Q $19) 21... Nxe5 22. Nxe5 (22. Bxc5 Qc7 $11) 22... Qxe5 23. Qxa5 $16) (20... Nxe5 21. Nfxe5 Bxe5 22. Nxe5 Qxe5 23. Qxa5 $16) 21. Nxa5 Qb1 (21... Bxe5 22. Nxc6 (22. Bxc5 $2 a1=Q $19) (22. Nxe5 Qxe5 23. Nxc6 Nxc6 $11) 22... Nxc6 23. Nxe5 Qxe5 24. c3 $11) (21... Nxe5 $2 22. Bxc5 Qb1 23. Bxe7 $19) 22. Nb3 c4 {Black is clearly winning.} (22... Bxe5 23. Nxe5 Nxe5 24. Qd1 (24. Bxc5 $2 {is the wrong capture.} Rb8 $19) 24... Qxd1 25. Rxd1 Bxd3 26. cxd3 $17) 23. dxc4 Bxc4 ({Not} 23... Bxe5 24. Nxe5 Nxe5 25. Bc5 $11) 24. Qc3 (24. Qd1 $142 Bxb3 25. cxb3 Qxd1 26. Rxd1) 24... Bxb3 25. cxb3 Ra8 26. Qa1 {[#]} Qxe1+ $3 {[%mdl 576] Deflection} 27. Nxe1 (27. Qxe1 a1=Q) 27... Bxe5 28. Nc2 Bxa1 29. Nxa1 {Weighted Error Value: White=0.91/Black=0.05 (flawless)} 0-1

[Event "Lliga Catalana DH 2023"]
[Site "Catalonia"]
[Date "2023.02.18"]
[Round "5.4"]
[White "Baches Garcia, Guillermo"]
[Black "Campos Cayuelas, Adria"]
[Result "1-0"]
[ECO "C01"]
[WhiteElo "2328"]
[BlackElo "2167"]
[Annotator "TA"]
[PlyCount "53"]
[EventDate "2023.01.24"]
[EventType "team-tourn"]
[EventCountry "ESP"]
[SourceTitle "playchess.com"]
[Source "ChessBase"]
[SourceQuality "1"]
[TimeControl "40/5400+30:1800+30"]

{[%evp 12,53,2,2,24,18,62,49,29,4,139,144,147,149,141,151,151,148,170,172,167,149,178,178,193,206,250,240,268,268,308,297,340,339,337,334,430,454,424,440,488,491,487,493]} 1. e4 e6 2. Nf3 d5 3. exd5 exd5 4. d4 Bd6 5. c4 {[%cal Bc2c4,Bc4d5][%mdl 32]} Nf6 6. Nc3 O-O 7. cxd5 Re8+ {C01: French: Exchange Variation.} 8. Be2 Be7 9. Qb3 Nbd7 {White is slightly better.} 10. Ne5 {[%cal Od5d6] [#] And now d6! would win.} Nb6 $146 {[#] White now steadily converts the win.} (10... Bd6 $11 {remains equal.}) ({Predecessor:} 10... Bd6 11. f4 Nb6 12. O-O Bxe5 13. dxe5 Nfxd5 14. Nxd5 Nxd5 15. Qg3 Bf5 16. b3 c6 {1-0 Svobodova,M (2190)-Lehoczki,V (2065) Tatry op Tatranska Lomnica 1997 (6)}) 11. d6 $1 $16 {[%mdl 512]} Bxd6 12. Nxf7 {Intending Nh6+ and mate. White is much more active.} ({Much worse is} 12. Qxf7+ $6 Kh8 13. Qb3 Bxe5 14. dxe5 Rxe5 $11) 12... Be6 13. Nxd8 Bxb3 14. Nxb7 ({Don't take} 14. axb3 Rexd8 15. O-O h6 $16) 14... Bc4 15. Nxd6 cxd6 16. Be3 Rac8 17. Rc1 Bxe2 18. Kxe2 Ng4 19. h3 Nxe3 20. fxe3 d5 21. b3 Rc7 22. Kd3 Rec8 23. Ne2 g5 24. Rxc7 {White is clearly winning.} Rxc7 25. Rf1 Kg7 26. Nc3 Kg6 27. g4 {Weighted Error Value: White=0.03 (flawless) /Black=0.35} 1-0

[Event "Lliga Catalana DH 2023"]
[Site "Catalonia"]
[Date "2023.02.18"]
[Round "5.4"]
[White "Malka, Samuel"]
[Black "Fernandez Aguado, Enrique"]
[Result "1-0"]
[ECO "E15"]
[WhiteElo "2166"]
[BlackElo "2281"]
[Annotator "TA"]
[PlyCount "61"]
[EventDate "2023.01.24"]
[EventType "team-tourn"]
[EventCountry "ESP"]
[SourceTitle "playchess.com"]
[Source "ChessBase"]
[SourceQuality "1"]
[TimeControl "40/5400+30:1800+30"]

{[%evp 19,61,0,24,-2,56,15,18,-6,4,0,0,0,12,10,26,12,52,64,123,45,45,43,54,0,131,54,171,89,221,87,239,258,229,220,194,220,595,553,1662,1434,2331,2145,29997,341]} 1. d4 {[%emt 0:00:07]} Nf6 {[%emt 0:01:01]} 2. c4 {[%emt 0:00:08]} e6 {[%emt 0:00:45]} 3. Nf3 {[%emt 0:00:02]} b6 {[%emt 0:00:23]} 4. g3 {[%emt 0:00:02]} Ba6 {[%emt 0:00:57]} 5. b3 {[%emt 0:01:23]} Bb4+ {[%emt 0:00:19]} 6. Bd2 {[%emt 0:00:37]} Be7 {[%emt 0:00:09]} 7. Nc3 {[%emt 0:03:25]} d5 {[%emt 0:01:39]} 8. cxd5 {[%emt 0:00:54]} exd5 {[%emt 0:01:38]} 9. Bg2 {[%emt 0:00:26]} O-O {[%emt 0:00:59]} 10. O-O {[%emt 0:06:20]} Re8 {[%emt 0:00:20]} 11. Re1 {[%emt 0:08:16] [#] 11.Rc1 is the modern continuation. E15: Queen's Indian: 4 g3 sidelines, 4 g3 Ba6 and 4 g3 Bb7 early deviations.} h6 $146 {[%emt 0:06:33]} (11... Bb7 $11) ({Predecessor:} 11... Nbd7 12. Bg5 h6 13. Bxf6 Nxf6 14. Ne5 Ba3 15. Qc2 c5 16. Nc6 Qd6 17. Nb1 Bd3 18. Qxd3 Bb2 {½-½ Gozzoli,Y (2594)-Piorun,K (2627) FRA Cup Paris 2022 (2.1)}) 12. Qc2 {[%emt 0:05:03]} Bb7 {[%emt 0:05:38]} (12... Nbd7 {seems wilder.} 13. Ne5 Bb7 14. Rad1 Bd6) 13. Bf4 {[%emt 0:07:06] The position is equal.} Na6 {[%emt 0:00:21]} 14. a3 {[%emt 0:03:02]} c5 {[%emt 0:07:25]} 15. Red1 {[%emt 0:15:30]} Qc8 {[%emt 0:06:00]} 16. Rac1 {[%emt 0:09:29]} Bf8 {[%emt 0:07:45]} 17. dxc5 {[%emt 0:06:15]} Nxc5 {[%emt 0:08:44]} (17... bxc5 $5 {[%cal Rd5d4]} 18. e3 Qe6 $11) 18. Nb5 {[%emt 0:02:05]} g5 {[%emt 0:23:25]} (18... Ne6 $14) 19. Nd6 {[%emt 0:05:10] White is more active.} (19. Bd6 $16) 19... Bxd6 $14 {[%emt 0:01:59]} 20. Bxd6 {[%emt 0:00:03]} Nfe4 {[%emt 0:00:39]} 21. b4 {[%emt 0:04:43]} (21. Bxc5 $14 Qxc5 22. Qxc5 bxc5 23. Nd2) 21... Ne6 {[%emt 0:04:59]} (21... Nxd6 $11 {keeps the balance.} 22. bxc5 bxc5) 22. Be5 {[%emt 0:02:08] This pair of bishops is nice.} (22. Qd3 $16 Qd7 23. Be5) 22... g4 {[%emt 0:05:07] [#]} ({Black should try} 22... Qxc2 $14 23. Rxc2 Rac8) 23. Nh4 {[%emt 0:01:13]} (23. Qb2 $1 $18 Qd8 24. Nd2) 23... N6g5 {[%emt 0:01:30]} (23... Qxc2 $16 24. Rxc2 N6g5) 24. Ba1 {[%emt 0:07:19]} (24. Qb2 $18 Qe6 25. Bh8) 24... Qe6 {[%emt 0:03:10]} (24... Qxc2 $16 25. Rxc2 Rec8 26. Rxc8+ Rxc8) 25. Qb2 $18 {[%emt 0:00:56][%csl Ga1][%cal Rb2g7]} f6 {[%emt 0:01:33]} 26. Rc7 {[%emt 0:01:57]} Ba6 {[%emt 0:04:28]} 27. b5 {[%emt 0:01:41]} Bc8 {[%emt 0:01:14]} (27... Rec8 {is a better chance.}) 28. Ng6 {[%emt 0:01:28] Nf4 would be deadly.} Nxf2 {[%emt 0:01:56] aiming for ...Ngh3+.} 29. Kxf2 {[%emt 0:03:30]} Qe3+ {[%emt 0:00:14]} 30. Kf1 {[%emt 0:00:50][%cal Oc7g7] Rg7+! would kill now.} Nf3 {[%emt 0:00:21] [#]} 31. Rg7+ $3 {[%emt 0:00:29][%mdl 576] Decoy. Magnificent play by Malka!   Weighted Error Value: White=0.39/Black=1.12} 1-0